[Event "Titled Tuesday Blitz August 1 Late 2023"]
[White "Navyblue1"]
[Black "Fernandez Siles, Luis"]
[BlackFideId "2209420"]
[WhiteElo "1938"]
[BlackElo "2295"]
[Result "1/2-1/2"]
[Round "6"]
[TimeControl "180+1"]
[Date "2023.08.01"]
[WhiteClock "0:00:05"]
[BlackClock "0:00:04"]
[Board "132"]

1. d4 {[%clk 0:03:00]}  f5 {[%clk 0:02:58]} 2. e4 {[%clk 0:02:59]}  fxe4 {[%clk 0:02:57]} 3. Nc3 {[%clk 0:02:58]}  Nf6 {[%clk 0:02:57]} 4. Bg5 {[%clk 0:02:55]}  Nc6 {[%clk 0:02:57]} 5. d5 {[%clk 0:02:53]}  Ne5 {[%clk 0:02:56]} 6. Qe2 {[%clk 0:02:53]}  Nf7 {[%clk 0:02:40]} 7. Bxf6 {[%clk 0:02:30]}  exf6 {[%clk 0:02:38]} 8. Qxe4+ {[%clk 0:02:30]}  Qe7 {[%clk 0:02:33]} 9. O-O-O {[%clk 0:02:26]}  Qxe4 {[%clk 0:02:32]} 10. Nxe4 {[%clk 0:02:26]}  Nd6 {[%clk 0:02:25]} 11. Bd3 {[%clk 0:02:20]}  Nxe4 {[%clk 0:02:18]} 12. Bxe4 {[%clk 0:02:19]}  Bc5 {[%clk 0:02:19]} 13. Rd2 {[%clk 0:02:11]}  O-O {[%clk 0:02:10]} 14. Nf3 {[%clk 0:02:07]}  d6 {[%clk 0:02:09]} 15. Nd4 {[%clk 0:01:55]}  Bxd4 {[%clk 0:02:08]} 16. Rxd4 {[%clk 0:01:54]}  Bd7 {[%clk 0:01:50]} 17. Bd3 {[%clk 0:01:45]}  Rfe8 {[%clk 0:01:45]} 18. Kd2 {[%clk 0:01:39]}  Re5 {[%clk 0:01:42]} 19. f4 {[%clk 0:01:31]}  Re7 {[%clk 0:01:39]} 20. Rg1 {[%clk 0:01:27]}  Rae8 {[%clk 0:01:38]} 21. g4 {[%clk 0:01:20]}  g6 {[%clk 0:01:33]} 22. h4 {[%clk 0:01:12]}  Kg7 {[%clk 0:01:32]} 23. f5 {[%clk 0:00:54]}  Re5 {[%clk 0:01:19]} 24. fxg6 {[%clk 0:00:51]}  hxg6 {[%clk 0:01:18]} 25. g5 {[%clk 0:00:47]}  fxg5 {[%clk 0:01:14]} 26. hxg5 {[%clk 0:00:44]}  Rf8 {[%clk 0:01:13]} 27. Rg2 {[%clk 0:00:38]}  Bf5 {[%clk 0:01:08]} 28. Rc4 {[%clk 0:00:20]}  Rf7 {[%clk 0:01:04]} 29. Bxf5 {[%clk 0:00:20]}  Rexf5 {[%clk 0:01:05]} 30. Kc3 {[%clk 0:00:19]}  Rxd5 {[%clk 0:01:02]} 31. Kb3 {[%clk 0:00:17]}  c5 {[%clk 0:01:00]} 32. Rcg4 {[%clk 0:00:16]}  b5 {[%clk 0:00:56]} 33. c3 {[%clk 0:00:16]}  a5 {[%clk 0:00:55]} 34. a4 {[%clk 0:00:16]}  b4 {[%clk 0:00:53]} 35. cxb4 {[%clk 0:00:15]}  axb4 {[%clk 0:00:49]} 36. Kc4 {[%clk 0:00:15]}  Rdf5 {[%clk 0:00:41]} 37. a5 {[%clk 0:00:15]}  Ra7 {[%clk 0:00:31]} 38. Kb5 {[%clk 0:00:15]}  Rff7 {[%clk 0:00:31]} 39. Rd2 {[%clk 0:00:14]}  Rfb7+ {[%clk 0:00:31]} 40. Kc6 {[%clk 0:00:14]}  Rc7+ {[%clk 0:00:19]} 41. Kb6 {[%clk 0:00:14]}  Rd7 {[%clk 0:00:14]} 42. a6 {[%clk 0:00:14]}  Kf7 {[%clk 0:00:13]} 43. Re4 {[%clk 0:00:13]}  d5 {[%clk 0:00:12]} 44. Re5 {[%clk 0:00:12]}  Ra8 {[%clk 0:00:10]} 45. Kxc5 {[%clk 0:00:11]}  Rxa6 {[%clk 0:00:09]} 46. Kxb4 {[%clk 0:00:11]}  d4 {[%clk 0:00:07]} 47. Re4 {[%clk 0:00:10]}  d3 {[%clk 0:00:06]} 48. Re3 {[%clk 0:00:10]}  Rb6+ {[%clk 0:00:05]} 49. Kc3 {[%clk 0:00:09]}  Rc6+ {[%clk 0:00:05]} 50. Kb3 {[%clk 0:00:09]}  Rcd6 {[%clk 0:00:03]} 51. Kc3 {[%clk 0:00:09]}  Rc7+ {[%clk 0:00:03]} 52. Kb3 {[%clk 0:00:09]}  Rb6+ {[%clk 0:00:04]} 53. Ka2 {[%clk 0:00:08]}  Ra7+ {[%clk 0:00:02]} 54. Kb1 {[%clk 0:00:08]}  Ra5 {[%clk 0:00:02]} 55. Rdxd3 {[%clk 0:00:09]}  Rxg5 {[%clk 0:00:02]} 56. Rf3+ {[%clk 0:00:09]}  Kg7 {[%clk 0:00:03]} 57. Rd7+ {[%clk 0:00:09]}  Kh6 {[%clk 0:00:03]} 58. Rh3+ {[%clk 0:00:10]}  Rh5 {[%clk 0:00:04]} 59. Rg3 {[%clk 0:00:10]}  Rf6 {[%clk 0:00:03]} 60. Rdd3 {[%clk 0:00:10]}  Rh4 {[%clk 0:00:03]} 61. Ka2 {[%clk 0:00:09]}  g5 {[%clk 0:00:03]} 62. b3 {[%clk 0:00:09]}  Kh5 {[%clk 0:00:04]} 63. Ka3 {[%clk 0:00:09]}  g4 {[%clk 0:00:04]} 64. b4 {[%clk 0:00:10]}  Rf5 {[%clk 0:00:04]} 65. Ka4 {[%clk 0:00:10]}  Rh1 {[%clk 0:00:02]} 66. b5 {[%clk 0:00:10]}  Ra1+ {[%clk 0:00:02]} 67. Ra3 {[%clk 0:00:10]}  Rxa3+ {[%clk 0:00:03]} 68. Rxa3 {[%clk 0:00:10]}  Kh4 {[%clk 0:00:02]} 69. b6 {[%clk 0:00:10]}  g3 {[%clk 0:00:03]} 70. b7 {[%clk 0:00:09]}  Rf8 {[%clk 0:00:03]} 71. Rb3 {[%clk 0:00:08]}  g2 {[%clk 0:00:03]} 72. Rb1 {[%clk 0:00:08]}  Rb8 {[%clk 0:00:01]} 73. Ka5 {[%clk 0:00:07]}  Rxb7 {[%clk 0:00:02]} 74. Rxb7 {[%clk 0:00:05]}  g1=Q {[%clk 0:00:02]} 75. Rh7+ {[%clk 0:00:05]}  Kg3 {[%clk 0:00:03]} 76. Rg7+ {[%clk 0:00:05]}  Kf2 {[%clk 0:00:04]} 77. Rxg1 {[%clk 0:00:05]}  Kxg1 {[%clk 0:00:04]} 1/2-1/2


[Site "https://www.chess.com"]

[Event "Titled Tuesday Blitz August 1 Late 2023"]
[White "Ramadoss, Ashokkumar"]
[Black "Perez, Maximiliano"]
[WhiteFideId "5040990"]
[BlackFideId "117234"]
[WhiteElo "2302"]
[BlackElo "2542"]
[Result "0-1"]
[Round "6"]
[TimeControl "180+1"]
[Date "2023.08.01"]
[WhiteClock "0:02:08"]
[BlackClock "0:02:49"]
[Board "133"]

1. Nf3 {[%clk 0:03:00]}  Nf6 {[%clk 0:02:58]} 2. c4 {[%clk 0:03:01]}  e6 {[%clk 0:02:57]} 3. d4 {[%clk 0:03:00]}  d5 {[%clk 0:02:54]} 4. Nc3 {[%clk 0:03:00]}  dxc4 {[%clk 0:02:54]} 5. e3 {[%clk 0:03:00]}  c5 {[%clk 0:02:51]} 6. Bxc4 {[%clk 0:03:00]}  cxd4 {[%clk 0:02:52]} 7. exd4 {[%clk 0:03:00]}  Be7 {[%clk 0:02:52]} 8. O-O {[%clk 0:03:00]}  O-O {[%clk 0:02:53]} 9. Qe2 {[%clk 0:03:00]}  Nc6 {[%clk 0:02:54]} 10. Rd1 {[%clk 0:03:01]}  a6 {[%clk 0:02:53]} 11. Bg5 {[%clk 0:02:56]}  b5 {[%clk 0:02:52]} 12. Bd3 {[%clk 0:02:56]}  Nb4 {[%clk 0:02:50]} 13. Bxf6 {[%clk 0:02:22]}  Bxf6 {[%clk 0:02:50]} 14. Qe4 {[%clk 0:02:23]}  Nxd3 {[%clk 0:02:50]} 15. Qxa8 {[%clk 0:02:23]}  Nxb2 {[%clk 0:02:50]} 16. Rd3 {[%clk 0:02:08]}  Nxd3 {[%clk 0:02:49]} 0-1


[Site "https://www.chess.com"]

[Event "Titled Tuesday Blitz August 1 Late 2023"]
[White "Miguelitro69"]
[Black "Castro Silva, Moises Antonio"]
[BlackFideId "3909794"]
[WhiteElo "2290"]
[BlackElo "2446"]
[Result "1-0"]
[Round "6"]
[TimeControl "180+1"]
[Date "2023.08.01"]
[WhiteClock "0:00:10"]
[BlackClock "0:00:02"]
[Board "135"]

1. e4 {[%clk 0:03:00]}  c5 {[%clk 0:03:00]} 2. Nf3 {[%clk 0:03:00]}  Nc6 {[%clk 0:03:00]} 3. d4 {[%clk 0:03:00]}  cxd4 {[%clk 0:03:01]} 4. Nxd4 {[%clk 0:03:00]}  Nf6 {[%clk 0:03:02]} 5. Nc3 {[%clk 0:03:00]}  e5 {[%clk 0:03:03]} 6. Nb3 {[%clk 0:02:58]}  Bb4 {[%clk 0:03:02]} 7. Bd3 {[%clk 0:02:57]}  d5 {[%clk 0:03:02]} 8. exd5 {[%clk 0:02:54]}  Nxd5 {[%clk 0:03:03]} 9. O-O {[%clk 0:02:44]}  Nxc3 {[%clk 0:02:59]} 10. bxc3 {[%clk 0:02:43]}  Be7 {[%clk 0:02:54]} 11. Qh5 {[%clk 0:02:37]}  g6 {[%clk 0:02:46]} 12. Qh6 {[%clk 0:02:34]}  Bf8 {[%clk 0:02:47]} 13. Qe3 {[%clk 0:02:30]}  Bg7 {[%clk 0:02:43]} 14. Ba3 {[%clk 0:02:29]}  f5 {[%clk 0:02:14]} 15. Rad1 {[%clk 0:02:26]}  Qf6 {[%clk 0:02:10]} 16. Rfe1 {[%clk 0:02:16]}  Bd7 {[%clk 0:02:03]} 17. Nc5 {[%clk 0:01:51]}  O-O-O {[%clk 0:01:57]} 18. Rb1 {[%clk 0:01:42]}  b6 {[%clk 0:01:55]} 19. Ba6+ {[%clk 0:01:34]}  Kc7 {[%clk 0:01:52]} 20. Nb7 {[%clk 0:01:29]}  Bc8 {[%clk 0:01:39]} 21. Nxd8 {[%clk 0:01:23]}  Bxa6 {[%clk 0:01:39]} 22. Nxc6 {[%clk 0:01:20]}  Qxc6 {[%clk 0:01:40]} 23. Qg5 {[%clk 0:01:15]}  Bf6 {[%clk 0:01:37]} 24. Qg3 {[%clk 0:01:05]}  f4 {[%clk 0:01:18]} 25. Qh3 {[%clk 0:01:03]}  Bc8 {[%clk 0:01:15]} 26. Qd3 {[%clk 0:00:51]}  Rd8 {[%clk 0:01:09]} 27. Qe2 {[%clk 0:00:37]}  Bf5 {[%clk 0:00:54]} 28. Qa6 {[%clk 0:00:36]}  Kb8 {[%clk 0:00:48]} 29. c4 {[%clk 0:00:33]}  Bxc2 {[%clk 0:00:40]} 30. Rb2 {[%clk 0:00:26]}  Bd3 {[%clk 0:00:40]} 31. Rc1 {[%clk 0:00:20]}  Bxc4 {[%clk 0:00:35]} 32. Qa5 {[%clk 0:00:04]}  e4 {[%clk 0:00:22]} 33. Rb4 {[%clk 0:00:02]}  Be2 {[%clk 0:00:03]} 34. Qa4 {[%clk 0:00:03]}  Qxa4 {[%clk 0:00:01]} 35. Rxa4 {[%clk 0:00:03]}  Bd4 {[%clk 0:00:02]} 36. Rxd4 {[%clk 0:00:03]}  Rxd4 {[%clk 0:00:01]} 37. Bb2 {[%clk 0:00:02]}  e3 {[%clk 0:00:02]} 38. Bxd4 {[%clk 0:00:02]}  exf2+ {[%clk 0:00:02]} 39. Kxf2 {[%clk 0:00:02]}  Bb5 {[%clk 0:00:02]} 40. g3 {[%clk 0:00:03]}  Kb7 {[%clk 0:00:03]} 41. gxf4 {[%clk 0:00:04]}  Bc4 {[%clk 0:00:03]} 42. Ke3 {[%clk 0:00:05]}  Bxa2 {[%clk 0:00:03]} 43. Rc3 {[%clk 0:00:06]}  Be6 {[%clk 0:00:04]} 44. Ra3 {[%clk 0:00:06]}  a5 {[%clk 0:00:04]} 45. Rc3 {[%clk 0:00:07]}  b5 {[%clk 0:00:03]} 46. Rc1 {[%clk 0:00:08]}  b4 {[%clk 0:00:03]} 47. Rc5 {[%clk 0:00:08]}  Ka6 {[%clk 0:00:03]} 48. Rc6+ {[%clk 0:00:09]}  Kb5 {[%clk 0:00:04]} 49. Rxe6 {[%clk 0:00:10]}  a4 {[%clk 0:00:04]} 50. Rb6+ {[%clk 0:00:10]}  Kc4 {[%clk 0:00:04]} 51. Rb8 {[%clk 0:00:10]}  Kb3 {[%clk 0:00:02]} 52. Bc5 {[%clk 0:00:10]} 1-0


[Site "https://www.chess.com"]

[Event "Titled Tuesday Blitz August 1 Late 2023"]
[White "Clawitter, Craig"]
[Black "Sathish, Pranav"]
[WhiteFideId "2023105"]
[BlackFideId "30967538"]
[WhiteElo "2263"]
[BlackElo "2426"]
[Result "0-1"]
[Round "6"]
[TimeControl "180+1"]
[Date "2023.08.01"]
[WhiteClock "0:00:00"]
[BlackClock "0:00:34"]
[Board "138"]

1. e4 {[%clk 0:03:00]}  c5 {[%clk 0:02:59]} 2. Nf3 {[%clk 0:03:00]}  Nc6 {[%clk 0:02:58]} 3. d4 {[%clk 0:02:58]}  cxd4 {[%clk 0:02:59]} 4. Nxd4 {[%clk 0:02:53]}  e5 {[%clk 0:02:59]} 5. Nb5 {[%clk 0:02:50]}  d6 {[%clk 0:02:56]} 6. N1c3 {[%clk 0:02:46]}  a6 {[%clk 0:02:56]} 7. Na3 {[%clk 0:02:44]}  Be7 {[%clk 0:02:55]} 8. Nc4 {[%clk 0:02:42]}  b5 {[%clk 0:02:54]} 9. Ne3 {[%clk 0:02:40]}  Nf6 {[%clk 0:02:55]} 10. Ned5 {[%clk 0:02:36]}  O-O {[%clk 0:02:52]} 11. Nxe7+ {[%clk 0:02:31]}  Qxe7 {[%clk 0:02:50]} 12. Bg5 {[%clk 0:02:30]}  Be6 {[%clk 0:02:45]} 13. Nd5 {[%clk 0:02:24]}  Bxd5 {[%clk 0:02:44]} 14. exd5 {[%clk 0:02:24]}  Nb8 {[%clk 0:02:32]} 15. c4 {[%clk 0:02:16]}  bxc4 {[%clk 0:02:30]} 16. Bxc4 {[%clk 0:02:16]}  Nbd7 {[%clk 0:02:31]} 17. O-O {[%clk 0:02:15]}  h6 {[%clk 0:02:31]} 18. Be3 {[%clk 0:02:09]}  Rfb8 {[%clk 0:02:30]} 19. b3 {[%clk 0:02:01]}  Nb6 {[%clk 0:02:30]} 20. Rc1 {[%clk 0:01:59]}  Qb7 {[%clk 0:02:26]} 21. f4 {[%clk 0:01:56]}  Nbxd5 {[%clk 0:02:12]} 22. Bd2 {[%clk 0:01:39]}  e4 {[%clk 0:02:04]} 23. Kh1 {[%clk 0:01:16]}  Re8 {[%clk 0:01:52]} 24. f5 {[%clk 0:01:04]}  e3 {[%clk 0:01:46]} 25. Be1 {[%clk 0:01:02]}  e2 {[%clk 0:01:44]} 26. Bxe2 {[%clk 0:01:02]}  Ne3 {[%clk 0:01:44]} 27. Bf3 {[%clk 0:01:00]}  d5 {[%clk 0:01:40]} 28. Qd3 {[%clk 0:00:52]}  Nxf1 {[%clk 0:01:35]} 29. Qxf1 {[%clk 0:00:53]}  Rac8 {[%clk 0:01:33]} 30. Rd1 {[%clk 0:00:52]}  Qb5 {[%clk 0:01:32]} 31. Qg1 {[%clk 0:00:46]}  Ne4 {[%clk 0:01:24]} 32. Bh4 {[%clk 0:00:31]}  Qc5 {[%clk 0:00:56]} 33. Qf1 {[%clk 0:00:20]}  Qe3 {[%clk 0:00:51]} 34. Re1 {[%clk 0:00:17]}  Qf4 {[%clk 0:00:48]} 35. Bxe4 {[%clk 0:00:07]}  Qxf1+ {[%clk 0:00:45]} 36. Rxf1 {[%clk 0:00:08]}  dxe4 {[%clk 0:00:44]} 37. f6 {[%clk 0:00:08]}  g5 {[%clk 0:00:43]} 38. Bg3 {[%clk 0:00:06]}  e3 {[%clk 0:00:43]} 39. Re1 {[%clk 0:00:06]}  e2 {[%clk 0:00:43]} 40. Kg1 {[%clk 0:00:06]}  Re6 {[%clk 0:00:42]} 41. Kf2 {[%clk 0:00:05]}  Rc2 {[%clk 0:00:40]} 42. h4 {[%clk 0:00:02]}  Rxf6+ {[%clk 0:00:39]} 43. Ke3 {[%clk 0:00:02]}  Re6+ {[%clk 0:00:39]} 44. Kf2 {[%clk 0:00:02]}  Rxa2 {[%clk 0:00:37]} 45. hxg5 {[%clk 0:00:02]}  hxg5 {[%clk 0:00:36]} 46. b4 {[%clk 0:00:00]}  Rd2 {[%clk 0:00:34]} 0-1


[Site "https://www.chess.com"]

[Event "Titled Tuesday Blitz August 1 Late 2023"]
[White "Necromon"]
[Black "Celestino, Rafael Teixeira"]
[BlackFideId "2108925"]
[WhiteElo "2390"]
[BlackElo "2232"]
[Result "1-0"]
[Round "6"]
[TimeControl "180+1"]
[Date "2023.08.01"]
[WhiteClock "0:00:34"]
[BlackClock "0:00:05"]
[Board "140"]

1. Nf3 {[%clk 0:02:56]}  Nf6 {[%clk 0:02:59]} 2. b3 {[%clk 0:02:55]}  g6 {[%clk 0:03:00]} 3. Bb2 {[%clk 0:02:55]}  Bg7 {[%clk 0:03:01]} 4. c4 {[%clk 0:02:55]}  O-O {[%clk 0:03:01]} 5. g3 {[%clk 0:02:56]}  d5 {[%clk 0:03:02]} 6. cxd5 {[%clk 0:02:55]}  Qxd5 {[%clk 0:03:03]} 7. Nc3 {[%clk 0:02:55]}  Qa5 {[%clk 0:03:00]} 8. Bg2 {[%clk 0:02:55]}  Bg4 {[%clk 0:03:01]} 9. O-O {[%clk 0:02:53]}  c6 {[%clk 0:03:01]} 10. d3 {[%clk 0:02:51]}  Nbd7 {[%clk 0:03:01]} 11. Nd2 {[%clk 0:02:47]}  Rfd8 {[%clk 0:02:48]} 12. Nc4 {[%clk 0:02:41]}  Qc7 {[%clk 0:02:47]} 13. Rc1 {[%clk 0:02:32]}  Ne5 {[%clk 0:02:43]} 14. Nb5 {[%clk 0:02:20]}  cxb5 {[%clk 0:02:33]} 15. Nxe5 {[%clk 0:02:20]}  Qb6 {[%clk 0:02:13]} 16. Nxg4 {[%clk 0:02:15]}  Nxg4 {[%clk 0:02:14]} 17. Bxg7 {[%clk 0:02:15]}  Kxg7 {[%clk 0:02:15]} 18. h3 {[%clk 0:02:16]}  Nf6 {[%clk 0:02:00]} 19. Qd2 {[%clk 0:02:12]}  b4 {[%clk 0:01:37]} 20. Rc4 {[%clk 0:02:06]}  a5 {[%clk 0:01:36]} 21. Rfc1 {[%clk 0:02:06]}  Rd7 {[%clk 0:01:34]} 22. Qf4 {[%clk 0:01:41]}  Qe6 {[%clk 0:01:00]} 23. Kf1 {[%clk 0:01:30]}  Nd5 {[%clk 0:00:53]} 24. Bxd5 {[%clk 0:01:21]}  Qxd5 {[%clk 0:00:54]} 25. Qe4 {[%clk 0:01:15]}  Qxe4 {[%clk 0:00:43]} 26. Rxe4 {[%clk 0:01:16]}  f5 {[%clk 0:00:32]} 27. Rec4 {[%clk 0:01:12]}  Kf7 {[%clk 0:00:19]} 28. d4 {[%clk 0:01:05]}  b5 {[%clk 0:00:15]} 29. Rc5 {[%clk 0:01:02]}  Rxd4 {[%clk 0:00:15]} 30. R1c2 {[%clk 0:00:58]}  a4 {[%clk 0:00:13]} 31. Rxb5 {[%clk 0:00:54]}  axb3 {[%clk 0:00:12]} 32. axb3 {[%clk 0:00:54]}  Ra1+ {[%clk 0:00:13]} 33. Kg2 {[%clk 0:00:53]}  Rb1 {[%clk 0:00:13]} 34. Rc7 {[%clk 0:00:48]}  Rxb3 {[%clk 0:00:12]} 35. Re5 {[%clk 0:00:49]}  Re4 {[%clk 0:00:08]} 36. Rcxe7+ {[%clk 0:00:48]}  Kf6 {[%clk 0:00:08]} 37. Rxe4 {[%clk 0:00:48]}  fxe4 {[%clk 0:00:09]} 38. Rxe4 {[%clk 0:00:49]}  Rb2 {[%clk 0:00:09]} 39. e3 {[%clk 0:00:47]}  Kf5 {[%clk 0:00:08]} 40. Rd4 {[%clk 0:00:45]}  b3 {[%clk 0:00:08]} 41. Rb4 {[%clk 0:00:42]}  Ke5 {[%clk 0:00:08]} 42. Kf3 {[%clk 0:00:40]}  g5 {[%clk 0:00:08]} 43. Kg4 {[%clk 0:00:38]}  h6 {[%clk 0:00:08]} 44. Kh5 {[%clk 0:00:38]}  Kd5 {[%clk 0:00:07]} 45. Kxh6 {[%clk 0:00:38]}  Kc5 {[%clk 0:00:08]} 46. Rb8 {[%clk 0:00:38]}  Kc4 {[%clk 0:00:09]} 47. f4 {[%clk 0:00:37]}  gxf4 {[%clk 0:00:09]} 48. exf4 {[%clk 0:00:38]}  Rh2 {[%clk 0:00:09]} 49. g4 {[%clk 0:00:37]}  Rxh3+ {[%clk 0:00:10]} 50. Kg6 {[%clk 0:00:37]}  Rh2 {[%clk 0:00:08]} 51. f5 {[%clk 0:00:37]}  b2 {[%clk 0:00:08]} 52. g5 {[%clk 0:00:37]}  Kc3 {[%clk 0:00:07]} 53. f6 {[%clk 0:00:36]}  Rh4 {[%clk 0:00:08]} 54. Rxb2 {[%clk 0:00:35]}  Kxb2 {[%clk 0:00:09]} 55. f7 {[%clk 0:00:34]}  Rf4 {[%clk 0:00:09]} 56. Kg7 {[%clk 0:00:34]}  Kc3 {[%clk 0:00:05]} 57. f8=Q {[%clk 0:00:34]} 1-0


[Site "https://www.chess.com"]

[Event "Titled Tuesday Blitz August 1 Late 2023"]
[White "Uzcategui Rodriguez, Alejandro"]
[Black "Broca Jimenez, Fernando"]
[WhiteFideId "3903400"]
[BlackFideId "5104742"]
[WhiteElo "2382"]
[BlackElo "2230"]
[Result "1-0"]
[Round "6"]
[TimeControl "180+1"]
[Date "2023.08.01"]
[WhiteClock "0:00:20"]
[BlackClock "0:00:00"]
[Board "141"]

1. d4 {[%clk 0:03:00]}  Nf6 {[%clk 0:02:49]} 2. Nf3 {[%clk 0:02:54]}  b6 {[%clk 0:02:46]} 3. Bg5 {[%clk 0:02:48]}  Bb7 {[%clk 0:02:44]} 4. Nbd2 {[%clk 0:02:40]}  d5 {[%clk 0:02:32]} 5. e3 {[%clk 0:02:35]}  Ne4 {[%clk 0:02:26]} 6. Nxe4 {[%clk 0:02:33]}  dxe4 {[%clk 0:02:27]} 7. Nd2 {[%clk 0:02:33]}  h6 {[%clk 0:02:20]} 8. Bh4 {[%clk 0:02:33]}  g5 {[%clk 0:02:20]} 9. Bg3 {[%clk 0:02:32]}  Bg7 {[%clk 0:02:20]} 10. Qh5 {[%clk 0:02:27]}  c5 {[%clk 0:02:04]} 11. Bb5+ {[%clk 0:02:18]}  Bc6 {[%clk 0:01:58]} 12. Bc4 {[%clk 0:02:04]}  Bd5 {[%clk 0:01:31]} 13. Bb5+ {[%clk 0:02:03]}  Bc6 {[%clk 0:01:30]} 14. Bc4 {[%clk 0:01:36]}  Bd5 {[%clk 0:01:27]} 15. Bxd5 {[%clk 0:01:36]}  Qxd5 {[%clk 0:01:26]} 16. c4 {[%clk 0:01:35]}  Qe6 {[%clk 0:01:02]} 17. d5 {[%clk 0:01:31]}  Qg6 {[%clk 0:00:56]} 18. Qxg6 {[%clk 0:01:30]}  fxg6 {[%clk 0:00:57]} 19. O-O-O {[%clk 0:01:25]}  O-O {[%clk 0:00:47]} 20. Nxe4 {[%clk 0:01:22]}  Nd7 {[%clk 0:00:45]} 21. Kc2 {[%clk 0:00:53]}  Rae8 {[%clk 0:00:33]} 22. Nc3 {[%clk 0:00:50]}  Be5 {[%clk 0:00:30]} 23. f3 {[%clk 0:00:44]}  h5 {[%clk 0:00:26]} 24. Bxe5 {[%clk 0:00:42]}  Nxe5 {[%clk 0:00:25]} 25. b3 {[%clk 0:00:42]}  g4 {[%clk 0:00:21]} 26. f4 {[%clk 0:00:42]}  Nd7 {[%clk 0:00:20]} 27. g3 {[%clk 0:00:41]}  Kg7 {[%clk 0:00:18]} 28. e4 {[%clk 0:00:41]}  g5 {[%clk 0:00:17]} 29. Rhf1 {[%clk 0:00:39]}  Kg6 {[%clk 0:00:14]} 30. e5 {[%clk 0:00:35]}  Nb8 {[%clk 0:00:10]} 31. Ne4 {[%clk 0:00:33]}  gxf4 {[%clk 0:00:08]} 32. gxf4 {[%clk 0:00:33]}  Na6 {[%clk 0:00:08]} 33. d6 {[%clk 0:00:33]}  Nb4+ {[%clk 0:00:08]} 34. Kb1 {[%clk 0:00:27]}  exd6 {[%clk 0:00:09]} 35. Nxd6 {[%clk 0:00:27]}  Rd8 {[%clk 0:00:08]} 36. f5+ {[%clk 0:00:26]}  Kg5 {[%clk 0:00:08]} 37. e6 {[%clk 0:00:22]}  Nc6 {[%clk 0:00:07]} 38. Nf7+ {[%clk 0:00:20]}  Rxf7 {[%clk 0:00:01]} 39. exf7 {[%clk 0:00:21]}  Kf6 {[%clk 0:00:01]} 40. Rxd8 {[%clk 0:00:20]}  Nxd8 {[%clk 0:00:00]} 41. Rd1 {[%clk 0:00:20]} 1-0


[Site "https://www.chess.com"]

[Event "Titled Tuesday Blitz August 1 Late 2023"]
[White "Rodriguez Santiago, Jaime"]
[Black "UgarteCesar"]
[WhiteFideId "3100898"]
[WhiteElo "2351"]
[BlackElo "2220"]
[Result "0-1"]
[Round "6"]
[TimeControl "180+1"]
[Date "2023.08.01"]
[WhiteClock "0:00:00"]
[BlackClock "0:00:45"]
[Board "143"]

1. c4 {[%clk 0:03:00]}  e6 {[%clk 0:02:59]} 2. d4 {[%clk 0:02:59]}  d5 {[%clk 0:02:59]} 3. Nc3 {[%clk 0:02:57]}  h6 {[%clk 0:03:00]} 4. cxd5 {[%clk 0:02:57]}  exd5 {[%clk 0:03:00]} 5. Bf4 {[%clk 0:02:55]}  c6 {[%clk 0:03:00]} 6. e3 {[%clk 0:02:54]}  Bd6 {[%clk 0:03:00]} 7. Bxd6 {[%clk 0:02:47]}  Qxd6 {[%clk 0:03:01]} 8. f4 {[%clk 0:02:46]}  Nf6 {[%clk 0:03:00]} 9. Nf3 {[%clk 0:02:46]}  Bg4 {[%clk 0:03:00]} 10. Bd3 {[%clk 0:02:42]}  O-O {[%clk 0:02:59]} 11. O-O {[%clk 0:02:40]}  Nbd7 {[%clk 0:02:58]} 12. Qc2 {[%clk 0:02:36]}  Bxf3 {[%clk 0:02:56]} 13. Rxf3 {[%clk 0:02:35]}  Rfe8 {[%clk 0:02:55]} 14. h3 {[%clk 0:02:23]}  Re7 {[%clk 0:02:55]} 15. g4 {[%clk 0:02:04]}  Rae8 {[%clk 0:02:53]} 16. Qf2 {[%clk 0:02:03]}  b5 {[%clk 0:02:25]} 17. g5 {[%clk 0:01:39]}  hxg5 {[%clk 0:02:17]} 18. fxg5 {[%clk 0:01:37]}  Nh5 {[%clk 0:02:17]} 19. Qh4 {[%clk 0:01:30]}  g6 {[%clk 0:02:17]} 20. Raf1 {[%clk 0:01:19]}  Rxe3 {[%clk 0:02:07]} 21. Qf2 {[%clk 0:00:52]}  Rxf3 {[%clk 0:01:59]} 22. Qxf3 {[%clk 0:00:52]}  Qg3+ {[%clk 0:01:55]} 23. Qxg3 {[%clk 0:00:52]}  Nxg3 {[%clk 0:01:56]} 24. Rf3 {[%clk 0:00:50]}  Nh5 {[%clk 0:01:46]} 25. Kf2 {[%clk 0:00:47]}  Nf8 {[%clk 0:01:41]} 26. a4 {[%clk 0:00:46]}  a6 {[%clk 0:01:40]} 27. axb5 {[%clk 0:00:46]}  axb5 {[%clk 0:01:41]} 28. Ne2 {[%clk 0:00:46]}  Ne6 {[%clk 0:01:41]} 29. h4 {[%clk 0:00:46]}  Ra8 {[%clk 0:01:28]} 30. Ke3 {[%clk 0:00:45]}  Ra2 {[%clk 0:01:26]} 31. b4 {[%clk 0:00:45]}  Ra3 {[%clk 0:01:24]} 32. Kd2 {[%clk 0:00:42]}  Rb3 {[%clk 0:01:14]} 33. Re3 {[%clk 0:00:22]}  Kg7 {[%clk 0:01:12]} 34. Kc2 {[%clk 0:00:18]}  Rxb4 {[%clk 0:01:09]} 35. Kc3 {[%clk 0:00:18]}  Ra4 {[%clk 0:01:09]} 36. Re5 {[%clk 0:00:13]}  Ra3+ {[%clk 0:01:02]} 37. Kd2 {[%clk 0:00:12]}  Nhf4 {[%clk 0:00:57]} 38. Nxf4 {[%clk 0:00:11]}  Nxf4 {[%clk 0:00:57]} 39. Bc2 {[%clk 0:00:11]}  Ne6 {[%clk 0:00:54]} 40. h5 {[%clk 0:00:10]}  gxh5 {[%clk 0:00:52]} 41. g6 {[%clk 0:00:11]}  Nxd4 {[%clk 0:00:51]} 42. Re7 {[%clk 0:00:07]}  Nxc2 {[%clk 0:00:48]} 43. gxf7 {[%clk 0:00:05]}  Kf8 {[%clk 0:00:48]} 44. Rc7 {[%clk 0:00:02]}  Nd4 {[%clk 0:00:45]} 45. Rc8+ {[%clk 0:00:00]}  Kxf7 {[%clk 0:00:45]} 0-1


[Site "https://www.chess.com"]